bitfinex/quotes_BTCUSD_20251114
["timestamp","ask_amount","ask_price","bid_price","bid_amount"]
[1763102850357,2.54903988,96498.0,96497.0,0.0191784]
[1763102850795,2.54903988,96498.0,96483.0,0.00014]
[1763102850796,2.57370484,96485.0,96483.0,0.00014]
[1763102851145,2.57370484,96485.0,96484.0,2.6e-07]
[1763102851976,2.25370484,96485.0,96484.0,2.6e-07]
[1763102852373,0.36641874,96484.0,96483.0,0.00014]
[1763102852605,2.57372418,96476.0,96474.0,0.12655303]
[1763102853493,2.57372418,96476.0,96474.0,0.09738954]
[1763102853742,2.36641874,96475.0,96474.0,0.06623882]
[1763102853988,2.36641874,96475.0,96474.0,1e-08]
[1763102854196,0.20733768,96461.0,96410.0,0.00013401]
[1763102854402,2.57375642,96461.0,96410.0,0.00013401]
[1763102854618,2.24185542,96461.0,96435.0,0.02353]
[1763102854857,2.24185542,96461.0,96410.0,0.00013401]
[1763102854858,1.96035568,96461.0,96412.0,0.20744294]
[1763102855069,1.96035568,96461.0,96425.0,0.02353]
[1763102855494,2.00423101,96461.0,96410.0,0.00013401]
[1763102856730,2.00523101,96461.0,96418.0,0.02353]
[1763102857305,2.00423101,96461.0,96410.0,0.00013401]
[1763102858129,2.00723101,96461.0,96410.0,0.00013401]
[1763102858809,2.00723101,96461.0,96410.0,0.04615401]
[1763102859133,2.00723101,96461.0,96410.0,0.00013401]
[1763102859277,2.00423101,96461.0,96410.0,0.00013401]
[1763102859820,2.00623101,96461.0,96410.0,0.00013401]
[1763102860022,2.00623101,96461.0,96460.0,0.09986884]
[1763102860264,2.00423101,96461.0,96410.0,0.00013401]
[1763102860422,2.57380586,96438.0,96410.0,0.00013401]
[1763102860834,2.57380586,96438.0,96437.0,1.17627071]
[1763102861338,2.53038712,96438.0,96437.0,1.17627071]
[1763102861737,0.20737053,96447.0,96437.0,1.17627071]
[1763102861932,0.00053829,96460.0,96438.0,0.04602]
[1763102862215,0.20735702,96452.0,96439.0,0.10366938]
[1763102862349,0.20738333,96440.0,96437.0,1.11]
[1763102863128,0.57107,96438.0,96437.0,1.11]
[1763102863333,0.89407,96438.0,96437.0,1.10989775]
[1763102863574,0.93548874,96438.0,96437.0,1.10989775]
[1763102863779,0.89207,96438.0,96437.0,1.10989775]
[1763102863978,0.724302,96438.0,96437.0,1.11089775]
[1763102864278,0.724302,96438.0,96437.0,1.10989775]
[1763102865035,0.76772074,96438.0,96437.0,1.10989775]
[1763102865255,0.724302,96438.0,96437.0,1.10989775]
[1763102865460,0.578041,96438.0,96437.0,1.10989775]
[1763102865663,0.449696,96438.0,96437.0,1.10989775]
[1763102866273,0.20738333,96440.0,96437.0,1.10989775]
[1763102866469,0.31556712,96438.0,96437.0,1.10989775]
[1763102867648,0.63856712,96438.0,96437.0,1.10989775]
[1763102868274,0.31556712,96438.0,96437.0,1.10989775]
[1763102868513,0.20738712,96438.0,96437.0,1.10989775]
[1763102869512,0.20738712,96438.0,96437.0,1.10885968]
[1763102870451,0.20738333,96440.0,96437.0,1.10885968]
[1763102872212,0.20738712,96438.0,96437.0,1.10885968]
[1763102872638,0.20738712,96438.0,96437.0,1.10985968]
[1763102872802,0.32081612,96438.0,96437.0,1.10985968]
[1763102873009,0.20738712,96438.0,96437.0,1.10985968]
[1763102873256,0.22630244,96438.0,96437.0,1.10885968]
[1763102873668,0.45317244,96438.0,96437.0,1.10885968]
[1763102873882,0.44279244,96438.0,96437.0,1.10885968]
[1763102874478,0.46462313,96438.0,96437.0,1.10885968]
[1763102875043,0.37673513,96438.0,96437.0,1.10885968]
[1763102875681,0.37672513,96438.0,96437.0,1.10885968]
[1763102876285,0.47707113,96438.0,96437.0,1.10885968]
[1763102876482,0.37931513,96438.0,96437.0,1.10885968]
[1763102876660,0.37371513,96438.0,96437.0,1.10885968]
[1763102877068,0.37371513,96438.0,96437.0,1.10985968]
[1763102877853,0.74962506,96438.0,96437.0,0.91806068]
[1763102878053,0.74962506,96438.0,96437.0,0.27027088]
[1763102878254,0.74962506,96438.0,96437.0,0.26927088]
[1763102878657,0.70620632,96438.0,96437.0,0.26927088]
[1763102879206,0.74962506,96438.0,96437.0,0.26927088]
[1763102879407,0.74962506,96438.0,96437.0,0.26823256]
[1763102880023,0.75162506,96438.0,96437.0,0.26823256]
[1763102881158,0.70820632,96438.0,96437.0,0.26823256]
[1763102881403,0.70620632,96438.0,96437.0,0.26823256]
[1763102881550,0.70720632,96438.0,96437.0,0.26823256]
[1763102882654,0.75062506,96438.0,96437.0,0.26823256]
[1763102883776,0.80530166,96438.0,96437.0,0.26823256]
[1763102883977,0.75062506,96438.0,96437.0,0.26823256]
[1763102884179,0.78708023,96438.0,96437.0,0.26823256]
[1763102884378,0.75062506,96438.0,96437.0,0.26823256]
[1763102885261,0.70720632,96438.0,96437.0,0.26823256]
[1763102885452,0.75062506,96438.0,96437.0,0.26823256]
[1763102885802,0.75062506,96438.0,96437.0,0.23707001]
[1763102886180,0.75062506,96438.0,96437.0,0.14980179]
[1763102886728,0.75067909,96438.0,96437.0,0.14980179]
[1763102887662,0.75062142,96438.0,96437.0,0.14980179]
[1763102888026,0.80527038,96438.0,96437.0,0.14980179]
[1763102888325,0.75062142,96438.0,96437.0,0.14980179]
[1763102889656,0.80524105,96438.0,96437.0,0.14980179]
[1763102889874,0.8051576,96438.0,96437.0,0.14980179]
[1763102890078,0.75053797,96438.0,96437.0,0.14980179]
[1763102890461,0.38411923,96438.0,96437.0,0.14876324]
[1763102891443,0.24904604,96438.0,96437.0,0.14876324]
[1763102891620,0.22721535,96438.0,96437.0,0.14876324]
[1763102891959,0.22621535,96438.0,96437.0,0.14876324]
[1763102892387,0.22721535,96438.0,96437.0,0.14876324]
[1763102892587,0.22721976,96438.0,96437.0,0.14876324]
[1763102893125,0.22721849,96438.0,96437.0,0.14876324]
[1763102893327,0.22721849,96438.0,96437.0,0.14335607]
[1763102893328,0.67372951,96438.0,96437.0,0.14335607]
[1763102893531,0.67272951,96438.0,96437.0,0.14335607]
[1763102893736,0.54052951,96438.0,96437.0,0.14335607]
[1763102893937,0.47241851,96438.0,96437.0,0.14435607]
[1763102894237,0.35131051,96438.0,96437.0,0.14435607]
[1763102894442,0.46907451,96438.0,96437.0,0.14335607]
[1763102895106,0.79207451,96438.0,96437.0,0.14335607]
[1763102895284,0.79207451,96438.0,96426.0,0.00899382]
[1763102895285,1.69736,96432.0,96431.0,0.06647937]
[1763102895497,1.74767895,96432.0,96431.0,0.06647937]
[1763102896042,1.79109769,96432.0,96431.0,0.06647937]
[1763102896259,1.79109769,96432.0,96374.0,0.08732]
[1763102896260,0.20751193,96380.0,96378.0,0.01205632]
[1763102896406,0.20796795,96380.0,96378.0,0.01205632]
[1763102898465,0.267526,96379.0,96378.0,0.01405632]
[1763102898667,0.18163167,96379.0,96378.0,0.01405632]
[1763102898870,0.18163167,96379.0,96378.0,0.00905632]
[1763102899453,0.57937046,96379.0,96378.0,0.00905632]
[1763102900315,0.60664081,96379.0,96378.0,0.00705632]
[1763102900436,0.57937046,96379.0,96378.0,0.00705632]
[1763102900661,0.57937046,96379.0,96378.0,0.00905632]
[1763102900900,0.57937046,96379.0,96353.0,0.00014]
[1763102900901,0.53056792,96354.0,96353.0,0.00014]
[1763102901161,2.54953359,96354.0,96353.0,0.00014]
[1763102901359,0.35931759,96354.0,96353.0,0.00014]
[1763102902518,0.40273633,96354.0,96353.0,0.00014]
[1763102902719,0.35931759,96354.0,96353.0,0.00014]
[1763102903102,0.22653359,96354.0,96353.0,0.00014]
[1763102903293,0.20756486,96356.0,96353.0,0.00014]
[1763102904136,0.20756486,96357.0,96353.0,0.08746]
[1763102904338,0.01037344,96400.0,96353.0,0.08746]
[1763102904339,0.118458,96379.0,96362.0,0.09546]
[1763102904551,0.01083161,96380.0,96367.0,0.05524]
[1763102904766,0.01083161,96380.0,96368.0,0.08732]
[1763102904767,0.00045602,96380.0,96368.0,0.08732]
[1763102904925,0.00045602,96380.0,96379.0,0.05524]
[1763102905283,0.20796795,96380.0,96379.0,0.05524]
[1763102905685,0.00045602,96380.0,96362.0,0.04022]
[1763102905885,0.00045602,96380.0,96379.0,0.05524]
[1763102906027,0.00045602,96380.0,96371.0,0.20752968]
[1763102906230,0.00045602,96380.0,96379.0,0.05524]
[1763102906433,0.00045602,96380.0,96365.0,0.1006426]
[1763102906653,0.00045602,96380.0,96362.0,0.04022]
[1763102906654,0.20754618,96365.0,96362.0,0.04022]
[1763102906862,0.20756325,96357.0,96340.0,0.0004]
[1763102907016,0.20754404,96366.0,96364.0,0.05524]
[1763102907634,0.20754404,96366.0,96363.0,0.04022]
[1763102907948,0.20756792,96354.0,96340.0,0.0004]
[1763102908149,0.20756792,96354.0,96343.0,0.08732]
[1763102908701,0.20756792,96354.0,96351.0,0.04022]
[1763102909680,0.20756716,96355.0,96351.0,0.04022]
[1763102910078,0.20756716,96355.0,96353.0,0.00114]
[1763102910611,0.20756716,96355.0,96353.0,0.00014]
[1763102910813,0.20756716,96355.0,96353.0,0.00114]
[1763102910814,0.434634,96354.0,96353.0,0.00114]
[1763102910960,0.612557,96354.0,96353.0,0.00114]
[1763102911340,0.49786149,96354.0,96353.0,0.00114]
[1763102911513,0.49786149,96354.0,96353.0,0.00014]
[1763102911718,0.51961462,96354.0,96353.0,0.00014]
[1763102911935,0.51961462,96354.0,96344.0,0.03198777]
[1763102911936,2.57399528,96350.0,96344.0,0.03198777]
[1763102912144,2.62407417,96350.0,96349.0,0.0996958]
[1763102912295,2.62407417,96350.0,96349.0,0.06852039]
[1763102912498,2.62407417,96350.0,96349.0,0.03734498]
[1763102912923,2.62407417,96350.0,96349.0,0.00616957]
[1763102913135,2.0,96321.0,96308.0,0.09058433]
[1763102913338,0.00456394,96322.0,96308.0,0.06846735]
[1763102913339,0.04341874,96310.0,96308.0,0.06846735]
[1763102913512,2.60238252,96309.0,96308.0,0.06846735]
[1763102913711,2.60238252,96309.0,96308.0,0.03725475]
[1763102913712,2.62407348,96309.0,96308.0,0.03725475]
[1763102913935,2.5741009,96301.0,96260.0,0.00201675]
[1763102914256,0.20770804,96289.0,96288.0,0.46878907]
[1763102914402,2.61470271,96289.0,96288.0,0.46878907]
[1763102914600,2.61470271,96289.0,96288.0,0.43757647]
[1763102914800,2.61470271,96289.0,96273.0,0.10606574]
[1763102915015,2.5307404,96274.0,96273.0,0.07485314]
[1763102915230,2.59304489,96274.0,96273.0,0.09621865]
[1763102915470,2.60350951,96274.0,96273.0,0.09621865]
[1763102915672,2.60350951,96274.0,96273.0,0.06500605]
[1763102915877,2.60350951,96274.0,96273.0,1e-08]
[1763102915878,2.63447501,96274.0,96273.0,1e-08]
[1763102916096,0.57417209,96268.0,96267.0,0.034473]
[1763102916320,0.57417209,96268.0,96247.0,1.29766375]
[1763102916321,2.57421526,96248.0,96247.0,1.29766375]
[1763102916538,2.59296061,96248.0,96247.0,1.40133313]
[1763102916662,2.59296061,96248.0,96247.0,1.34612053]
[1763102916860,2.59296061,96248.0,96247.0,1.31490793]
[1763102917137,2.59296061,96248.0,96247.0,1.28368117]
[1763102917308,2.59341579,96248.0,96247.0,0.58409141]
[1763102917508,2.59341579,96248.0,96247.0,0.44919527]
[1763102917717,2.2082517,96248.0,96247.0,0.44919527]
[1763102918058,1.0281167,96248.0,96247.0,0.44919527]
[1763102918270,0.3264317,96248.0,96247.0,0.4941148]
[1763102918395,0.2102517,96248.0,96247.0,0.4941148]
[1763102918590,0.3520697,96248.0,96247.0,0.4941148]
[1763102919309,0.00245518,96248.0,96247.0,0.4941148]
[1763102919527,0.00045518,96248.0,96247.0,0.4941148]
[1763102919896,0.00145518,96248.0,96247.0,0.4941148]
[1763102920294,0.37558818,96248.0,96247.0,0.4941148]
[1763102921062,0.00045518,96248.0,96247.0,0.4941148]
[1763102921609,0.00145518,96248.0,96247.0,0.4941148]
[1763102922746,0.00045518,96248.0,96247.0,0.4941148]
[1763102922888,2.00045518,96248.0,96247.0,0.4941148]
[1763102923084,2.32345518,96248.0,96247.0,0.4941148]
[1763102923696,2.32445518,96248.0,96247.0,0.4941148]
[1763102923910,2.32445518,96248.0,96247.0,0.44919527]
[1763102924116,2.32345518,96248.0,96247.0,0.44919527]
[1763102924590,2.36887392,96248.0,96247.0,0.44919527]
[1763102925773,2.36687392,96248.0,96247.0,0.44919527]
[1763102926101,2.36887392,96248.0,96247.0,0.44919527]
[1763102926427,2.36687392,96248.0,96247.0,0.44919527]
[1763102926829,2.36887392,96248.0,96247.0,0.44919527]
[1763102927443,2.32545518,96248.0,96247.0,0.44919527]
[1763102928289,2.36887392,96248.0,96247.0,0.44919527]
[1763102929787,2.36887392,96248.0,96247.0,0.28660611]
[1763102930403,2.04587392,96248.0,96247.0,0.28660611]
[1763102930624,1.99245518,96248.0,96247.0,0.28660611]
[1763102930847,1.312747,96248.0,96247.0,0.28660611]
[1763102930995,1.011806,96248.0,96247.0,0.28660611]
[1763102931195,0.974062,96248.0,96247.0,0.28660611]
[1763102931599,0.972062,96248.0,96247.0,0.28660611]
[1763102931806,2.0,96268.0,96247.0,0.28660611]
[1763102932009,0.002,96248.0,96247.0,0.28674356]
[1763102932337,0.622918,96248.0,96247.0,0.28674356]
[1763102932538,0.652494,96248.0,96247.0,0.28674356]
[1763102932754,0.652494,96248.0,96235.0,0.02]
[1763102932755,0.975494,96248.0,96235.0,0.02]
[1763102932958,2.20742235,96236.0,96235.0,0.02045518]
[1763102933279,0.20742235,96236.0,96235.0,0.02045518]
[1763102934001,0.31601635,96236.0,96235.0,0.02045518]
[1763102935772,0.64001635,96236.0,96235.0,0.02045518]
[1763102936252,0.63901635,96236.0,96235.0,0.01610518]
[1763102936895,0.31601635,96236.0,96235.0,0.01610518]
[1763102937257,0.31701635,96236.0,96235.0,0.01610518]
[1763102937751,0.20842235,96236.0,96235.0,0.01610518]
[1763102938528,0.33149635,96236.0,96235.0,0.01610518]
[1763102938726,0.20842235,96236.0,96235.0,0.01610518]
[1763102938945,0.20802227,96236.0,96235.0,0.01610518]
[1763102939197,0.20702227,96236.0,96235.0,0.01590516]
[1763102939402,0.36377127,96236.0,96235.0,0.01590516]
[1763102939606,0.20802227,96236.0,96235.0,0.01590516]
[1763102941066,0.20802227,96236.0,96220.0,0.17441582]
[1763102941067,0.20802227,96236.0,96180.0,0.00202689]
[1763102941068,0.01629075,96224.0,96180.0,0.00202689]
[1763102941278,1.8234838,96115.0,96055.0,6e-05]
[1763102941482,1.9875108,96115.0,96114.0,0.14905242]
[1763102941688,2.38925093,96115.0,96114.0,0.11783624]
[1763102941858,0.20811221,96102.0,96101.0,0.0935518]
[1763102942075,0.39279321,96102.0,96101.0,0.0935518]
[1763102942317,0.0393828,96102.0,96101.0,0.0935518]
[1763102942483,0.41541915,96102.0,96101.0,0.0935518]
[1763102942846,0.48152702,96102.0,96101.0,0.0935518]
[1763102943063,0.5032338,96102.0,96101.0,0.0935518]
[1763102943319,0.52494576,96102.0,96101.0,0.0935518]
[1763102943525,0.41541915,96102.0,96101.0,0.03829054]
[1763102943736,0.48050344,96102.0,96101.0,0.03829054]
[1763102943942,0.5828756,96102.0,96101.0,0.03829054]
[1763102944220,0.9058756,96102.0,96101.0,0.00702928]
[1763102944431,0.9058756,96102.0,96061.0,0.18419421]
[1763102944432,2.0,96092.0,96091.0,0.12405788]
[1763102944672,0.48455791,96092.0,96091.0,0.12405788]
[1763102944883,0.00896685,96100.0,96091.0,0.12405788]
[1763102945313,0.142357,96099.0,96091.0,0.12405788]
[1763102945426,0.01896684,96100.0,96091.0,0.12405788]
[1763102945641,0.20813272,96093.0,96091.0,0.12405788]
[1763102945849,0.02801375,96109.0,96091.0,0.12405788]
[1763102946047,0.00999999,96110.0,96091.0,0.12405788]
[1763102946048,0.00896685,96110.0,96091.0,0.12405788]
[1763102946249,0.00896685,96120.0,96092.0,0.0948]
[1763102946453,0.00999999,96120.0,96092.0,0.0948]
[1763102946671,0.01936942,96130.0,96092.0,0.0948]
[1763102946877,0.2081317,96093.0,96092.0,0.00045415]
[1763102947098,0.20811871,96099.0,96092.0,0.00045415]
[1763102947099,0.20813001,96094.0,96092.0,0.00045415]
[1763102947304,0.01896684,96110.0,96092.0,0.00045415]
[1763102947503,0.02,96160.0,96092.0,0.00045415]
[1763102947504,0.02936941,96130.0,96093.0,0.0948]
[1763102947767,0.00019999,96119.0,96094.0,0.20812953]
[1763102947882,0.00019999,96119.0,96100.0,0.00103314]
[1763102948286,0.00019999,96119.0,96102.0,0.20811221]
[1763102948689,0.01896684,96140.0,96101.0,0.0948]
[1763102948902,0.34191166,96170.0,96101.0,0.0948]
[1763102948903,0.01,96160.0,96101.0,0.0948]
[1763102949107,0.20791533,96194.0,96180.0,0.01]
[1763102949282,0.06501355,96210.0,96200.0,0.01]
[1763102949283,0.20789372,96203.0,96200.0,0.01]
[1763102949480,0.01039392,96210.0,96190.0,0.01]
[1763102949660,0.03600619,96259.0,96181.0,0.09027]
[1763102949661,0.216626,96219.0,96210.0,0.00963032]
[1763102949874,0.216626,96219.0,96181.0,0.09027]
[1763102949875,0.20785915,96219.0,96190.0,0.00963032]
[1763102950079,0.02263,96246.0,96240.0,0.00963032]
[1763102950286,0.20780864,96243.0,96240.0,0.00963032]
[1763102950446,0.20781379,96241.0,96220.0,0.00963032]
[1763102950648,0.00045471,96246.0,96240.0,0.00963032]
[1763102950852,4.71e-06,96246.0,96245.0,0.04733]
[1763102951053,0.02263,96305.0,96245.0,0.04733]
[1763102951054,0.20772961,96279.0,96270.0,0.00963032]
[1763102951450,0.20766706,96308.0,96300.0,0.00963032]
[1763102951685,0.02309,96334.0,96300.0,0.00963032]
[1763102951686,0.20764655,96318.0,96300.0,0.00963032]
[1763102951888,0.20758085,96348.0,96340.0,0.00963032]
[1763102952104,0.01037882,96350.0,96330.0,0.00963032]
[1763102952105,0.2076046,96337.0,96330.0,0.00963032]
[1763102952326,0.41504248,96376.0,96317.0,0.04733]
[1763102952327,0.20757305,96352.0,96340.0,0.00963032]
[1763102952551,0.20759593,96341.0,96331.0,0.09027]
[1763102952770,0.20763467,96324.0,96320.0,0.00963032]
[1763102953036,0.20761748,96331.0,96320.0,0.00963032]
[1763102953259,0.00045527,96352.0,96320.0,0.00963032]
[1763102953260,0.0002,96380.0,96370.0,0.00963032]
[1763102953476,0.0002,96380.0,96352.0,0.04733]
[1763102953477,0.20753682,96369.0,96360.0,0.09990032]
[1763102953713,0.83596,96379.0,96370.0,0.00963032]
[1763102953933,0.404746,96379.0,96370.0,0.00963032]
[1763102954148,0.0002,96380.0,96371.0,0.09027]
[1763102954594,0.34188577,96410.0,96371.0,0.09027]
[1763102954595,0.01037236,96410.0,96400.0,0.00963032]
[1763102954598,2.0,96427.0,96420.0,0.00963032]
[1763102954826,0.20741078,96427.0,96420.0,0.00963032]
[1763102955054,0.20738261,96441.0,96421.0,0.09027]
[1763102955285,0.20737512,96444.0,96421.0,0.09027]
[1763102955517,0.01037129,96420.0,96382.0,0.09027]
[1763102955774,0.20750547,96383.0,96382.0,0.00013659]
[1763102955996,0.57786047,96383.0,96382.0,0.00013659]
[1763102956691,0.20750547,96383.0,96382.0,0.00013659]
[1763102958098,0.20749439,96389.0,96382.0,0.09040659]
[1763102958302,0.20746027,96404.0,96390.0,0.00963032]
[1763102958502,0.522059,96409.0,96390.0,0.00963032]
[1763102958684,0.20750547,96383.0,96382.0,0.00013659]
[1763102959653,0.59315447,96383.0,96382.0,0.00013659]
[1763102960018,0.91615447,96383.0,96382.0,0.00013659]
[1763102960648,0.20750059,96386.0,96382.0,0.00013659]
[1763102961269,0.20750547,96383.0,96382.0,0.00013659]
[1763102961892,0.51037236,96410.0,96400.0,0.00963032]
[1763102962120,1.03664586,96465.0,96383.0,0.09027]
[1763102962121,0.01036699,96460.0,96420.0,0.00963032]
[1763102962323,0.20737634,96444.0,96440.0,0.00963032]
[1763102962528,0.0002,96480.0,96440.0,0.00963032]
[1763102962529,0.2073604,96451.0,96440.0,0.00963032]
[1763102962733,0.2073604,96451.0,96449.0,0.04733]
[1763102962932,0.0002,96480.0,96449.0,0.04733]
[1763102963306,0.00065583,96450.0,96449.0,0.04733]
[1763102963756,0.0002,96480.0,96470.0,0.00963032]
[1763102963982,0.20725874,96498.0,96490.0,0.00963032]
[1763102964183,0.21757362,96520.0,96510.0,0.00963032]
[1763102964388,0.33171341,96540.0,96500.0,0.00963032]
[1763102964389,0.20722453,96514.0,96500.0,0.00963032]
[1763102964648,0.01035947,96530.0,96494.0,0.09027]
[1763102964859,0.20726462,96495.0,96494.0,0.09027]
[1763102965068,0.01035947,96530.0,96520.0,0.00963032]
[1763102965268,0.20719174,96529.0,96520.0,0.00963032]
[1763102965563,0.20715284,96548.0,96523.0,0.1006426]
[1763102965797,1.0352008,96600.0,96570.0,0.00963032]
[1763102966009,0.33151341,96590.0,96570.0,0.00963032]
[1763102966184,0.33151341,96590.0,96520.0,0.03036053]
[1763102966185,0.20716586,96541.0,96540.0,0.0026451]
[1763102966375,0.01035518,96570.0,96450.0,0.21919864]
[1763102966376,0.20720402,96524.0,96510.0,0.0126451]
[1763102966580,1.737314,96525.0,96496.0,0.09027]
[1763102966783,0.34187395,96520.0,96510.0,0.0026451]
[1763102966989,1.05214826,96511.0,96510.0,0.00013659]
[1763102967335,0.64069226,96511.0,96510.0,0.00013659]
[1763102967490,0.96369226,96511.0,96510.0,0.00013659]
[1763102968023,0.323,96490.0,96480.0,0.0026451]
[1763102968232,0.323,96490.0,96400.0,0.35917092]
[1763102968233,0.20731618,96471.0,96470.0,0.0026451]
[1763102968433,0.32444918,96471.0,96470.0,0.0026451]
[1763102968641,0.20731618,96471.0,96460.0,0.0026451]
[1763102968858,0.01050053,96490.0,96480.0,0.0026451]
[1763102969078,0.20729255,96482.0,96462.0,0.1006426]
[1763102969256,0.20729255,96482.0,96480.0,0.0026451]
[1763102969257,0.20729325,96482.0,96480.0,0.0026451]
[1763102969463,0.18628674,96485.0,96481.0,0.2382426]
[1763102969721,0.18628674,96485.0,96481.0,0.1376]
[1763102969929,0.18628674,96485.0,96482.0,0.09027]
[1763102970131,0.00013677,96490.0,96470.0,0.0026451]
[1763102970132,0.20731618,96471.0,96470.0,0.0026451]
[1763102970294,0.20733768,96461.0,96460.0,0.09027]
[1763102970492,0.20738497,96439.0,96428.0,0.04635]
[1763102970763,0.34187932,96470.0,96428.0,0.04635]
[1763102970764,0.20737625,96444.0,96431.0,0.1006426]
[1763102970990,0.01036699,96460.0,96450.0,0.0026451]
[1763102970991,0.20735596,96453.0,96450.0,0.0026451]
[1763102971177,0.01036699,96460.0,96450.0,0.0026451]
[1763102971429,0.20735917,96451.0,96450.0,0.0026451]
[1763102971613,0.20735917,96451.0,96447.0,0.08947]
[1763102971614,0.20736132,96450.0,96447.0,0.08947]
[1763102971910,0.20736132,96450.0,96440.0,0.0026451]
[1763102971912,0.20738067,96441.0,96440.0,0.0026451]
[1763102972145,0.441003,96389.0,96353.0,0.04635]
[1763102972332,0.01037559,96380.0,96353.0,0.04635]
[1763102972593,0.20750432,96384.0,96354.0,0.08947]
[1763102972807,0.2075127,96380.0,96354.0,0.08947]
[1763102973017,0.20753968,96368.0,96366.0,0.1006426]
[1763102973213,0.01037452,96390.0,96354.0,0.08947]
[1763102973214,0.20750344,96384.0,96367.0,0.1006426]
[1763102973430,0.00013649,96368.0,96367.0,0.1006426]
[1763102973860,0.00013649,96368.0,96367.0,0.4236426]
[1763102974067,0.00013649,96368.0,96367.0,0.1006426]
[1763102974413,0.20740612,96430.0,96390.0,0.00999999]
[1763102974414,0.01037021,96430.0,96390.0,0.00999999]
[1763102974625,0.01050746,96430.0,96409.0,0.1006426]
[1763102974858,0.00013725,96430.0,96424.0,0.1006426]
[1763102975038,0.01036806,96450.0,96424.0,0.1006426]
[1763102975235,0.05461963,96551.0,96425.0,0.08947]
[1763102975236,0.20735808,96452.0,96425.0,0.08947]
[1763102975458,0.01036591,96470.0,96425.0,0.08947]
[1763102975459,0.01036591,96470.0,96426.0,0.323]
[1763102975662,0.01036699,96460.0,96439.0,0.1006426]
[1763102976056,0.01036699,96460.0,96442.0,0.1006426]
[1763102976277,0.13864,96469.0,96443.0,0.1006426]
[1763102976479,0.34187825,96480.0,96459.0,0.02714]
[1763102976480,0.20729816,96480.0,96459.0,0.02714]
[1763102976690,2.0,96499.0,96464.0,0.20733089]
[1763102976906,0.01036269,96500.0,96460.0,0.03036697]
[1763102976907,0.01036376,96490.0,96460.0,0.08947]
[1763102977127,0.01036376,96490.0,96461.0,0.1006426]
[1763102977330,0.20733119,96465.0,96461.0,0.1006426]
[1763102977552,0.20732985,96465.0,96461.0,0.1006426]
[1763102977788,0.20741874,96424.0,96414.0,0.08947]
[1763102977990,0.01036699,96460.0,96414.0,0.08947]
[1763102978104,0.01036591,96470.0,96430.0,0.00999999]
[1763102978329,0.01036591,96470.0,96436.0,0.2073909]
[1763102978330,0.2073383,96461.0,96436.0,0.2073909]
[1763102978551,0.01036484,96480.0,96442.0,0.20737804]
[1763102978777,0.20732876,96466.0,96440.0,0.2173825]
[1763102978983,0.20732876,96466.0,96449.0,0.20736133]
[1763102978984,0.00013715,96466.0,96449.0,0.20736133]
[1763102979209,0.00013715,96466.0,96441.0,0.08947]
[1763102979210,0.00013715,96466.0,96465.0,0.1277826]
[1763102980007,0.00013715,96466.0,96465.0,0.33511168]
[1763102980212,0.00013715,96466.0,96465.0,0.1277826]
[1763102980447,0.00013715,96466.0,96447.0,0.02714]
[1763102980692,0.2073449,96458.0,96455.0,0.08947]
[1763102980935,0.2073449,96458.0,96447.0,0.02714]
[1763102980936,0.20736347,96449.0,96447.0,0.02714]
[1763102981128,0.01036806,96450.0,96421.0,0.08947]
[1763102981357,0.01036699,96460.0,96435.0,0.02714]
[1763102981574,0.20737614,96444.0,96441.0,0.1006426]
[1763102981825,0.20738795,96438.0,96435.0,0.02714]
[1763102982039,0.00013715,96466.0,96435.0,0.02714]
[1763102982040,0.00013715,96466.0,96442.0,0.1006426]
[1763102982330,0.20746623,96466.0,96442.0,0.1006426]
[1763102982519,0.20729058,96483.0,96459.0,0.20734197]
[1763102982714,0.20729058,96483.0,96457.0,0.1006426]
[1763102982715,0.20730318,96478.0,96460.0,0.00999999]
[1763102982969,0.2074403,96478.0,96457.0,0.1006426]
[1763102983195,0.00013712,96478.0,96472.0,0.1006426]
[1763102983422,0.00013712,96478.0,96458.0,0.08947]
[1763102983648,0.00013712,96478.0,96459.0,0.1006426]
[1763102983886,0.20727065,96493.0,96474.0,0.1006426]
[1763102984111,0.01036269,96500.0,96475.0,0.08947]
[1763102984336,0.2072889,96484.0,96475.0,0.08947]
[1763102984560,0.20727833,96489.0,96475.0,0.08947]
[1763102984793,0.323,96527.0,96475.0,0.08947]
[1763102984988,0.00013712,96527.0,96500.0,0.02036268]
[1763102985276,0.00013712,96527.0,96526.0,0.04621]
[1763102985494,0.0002,96530.0,96526.0,0.25340525]
[1763102985711,0.20712724,96559.0,96528.0,0.20719376]
[1763102985969,0.20712939,96558.0,96534.0,0.20718088]
[1763102986166,0.00045718,96559.0,96531.0,0.20718732]
[1763102986366,0.00045718,96559.0,96544.0,0.20715913]
[1763102986577,0.00045718,96559.0,96558.0,0.0268]
[1763102988571,0.00045718,96559.0,96558.0,0.60034813]
[1763102989180,9e-05,96614.0,96558.0,0.3498]
[1763102989181,0.20702486,96608.0,96558.0,0.3498]
[1763102989381,0.20702486,96608.0,96577.0,0.20708847]
[1763102989382,0.20704004,96600.0,96577.0,0.20708847]
[1763102989580,0.20704004,96600.0,96558.0,0.0268]
[1763102989581,0.01035196,96600.0,96560.0,0.02035624]
[1763102989784,0.20707581,96583.0,96562.0,0.04341874]
[1763102990064,0.01035196,96600.0,96561.0,0.08947]
[1763102990065,0.20709588,96574.0,96561.0,0.08947]
[1763102990211,0.20707363,96584.0,96561.0,0.08947]
[1763102990410,0.01035303,96590.0,96561.0,0.08947]
[1763102990610,0.20712081,96562.0,96561.0,0.08947]
[1763102990881,0.20712724,96559.0,96558.0,0.0268]
[1763102991085,0.20711652,96564.0,96520.0,0.01036054]
[1763102991086,0.20715513,96546.0,96545.0,0.0268]
[1763102991337,0.00013699,96559.0,96545.0,0.0268]
[1763102991532,0.20715126,96548.0,96547.0,0.1006426]
[1763102991664,0.2071517,96550.0,96547.0,0.1006426]
[1763102991866,0.20715513,96546.0,96545.0,0.0268]
[1763102992108,0.2071517,96550.0,96545.0,0.0268]
[1763102992277,0.00013699,96559.0,96549.0,0.1006426]
[1763102992480,0.20714008,96554.0,96546.0,0.08947]
[1763102992696,0.00013699,96559.0,96558.0,0.0268]
[1763102993501,0.00013699,96559.0,96558.0,0.39321874]
[1763102994218,0.00899382,96638.0,96590.0,0.01999998]
[1763102994219,0.20699005,96623.0,96590.0,0.01999998]
[1763102994427,0.00022701,96614.0,96613.0,0.02714]
[1763102995455,0.20691606,96658.0,96621.0,0.04341874]
[1763102995655,0.20691606,96658.0,96632.0,0.20697077]
[1763102995656,0.00045673,96658.0,96632.0,0.20697077]
[1763102995855,0.00045673,96658.0,96638.0,0.04341874]
[1763102996059,0.00045673,96658.0,96630.0,0.03034873]
[1763102996060,0.00045673,96658.0,96631.0,0.08947]
[1763102996291,0.00045673,96658.0,96632.0,0.25038951]
[1763102996453,0.00045673,96658.0,96637.0,0.20696006]
[1763102996653,0.20691724,96657.0,96633.0,0.20696863]